[Event "Titled Tuesday Blitz March 21 Early 2023"]
[White "TigranHH"]
[Black "Miszler, Levente"]
[BlackFideId "763276"]
[WhiteElo "2273"]
[BlackElo "2176"]
[Result "1-0"]
[Round "03"]
[TimeControl "180+2"]
[Date "2023.03.21"]
[WhiteClock "0:00:28"]
[BlackClock "0:00:27"]

1. d4 {[%clk 0:02:51]}  e6 {[%clk 0:02:59]} 2. Nf3 {[%clk 0:02:50]}  Nf6 {[%clk 0:02:58]} 3. c4 {[%clk 0:02:50]}  b6 {[%clk 0:02:57]} 4. g3 {[%clk 0:02:48]}  Bb7 {[%clk 0:02:57]} 5. Bg2 {[%clk 0:02:48]}  Be7 {[%clk 0:02:57]} 6. O-O {[%clk 0:02:48]}  O-O {[%clk 0:02:57]} 7. d5 {[%clk 0:02:39]}  exd5 {[%clk 0:02:52]} 8. Nh4 {[%clk 0:02:37]}  c6 {[%clk 0:02:49]} 9. cxd5 {[%clk 0:02:38]}  Nxd5 {[%clk 0:02:49]} 10. Nf5 {[%clk 0:02:39]}  Nf6 {[%clk 0:02:43]} 11. e4 {[%clk 0:02:31]}  Bc5 {[%clk 0:02:35]} 12. Nc3 {[%clk 0:02:17]}  d6 {[%clk 0:02:24]} 13. Bg5 {[%clk 0:02:09]}  h6 {[%clk 0:02:21]} 14. Bf4 {[%clk 0:02:05]}  d5 {[%clk 0:02:09]} 15. e5 {[%clk 0:01:43]}  Ne8 {[%clk 0:01:56]} 16. Qg4 {[%clk 0:01:39]}  Kh7 {[%clk 0:01:54]} 17. Rad1 {[%clk 0:01:32]}  Bc8 {[%clk 0:01:54]} 18. Ne4 {[%clk 0:01:29]}  g6 {[%clk 0:01:28]} 19. Qh3 {[%clk 0:01:19]}  h5 {[%clk 0:01:25]} 20. g4 {[%clk 0:01:03]}  Ng7 {[%clk 0:01:07]} 21. Nf6+ {[%clk 0:00:56]}  Kh8 {[%clk 0:01:04]} 22. Qh4 {[%clk 0:00:32]}  Bxf5 {[%clk 0:00:34]} 23. Qg5 {[%clk 0:00:32]}  Qxf6 {[%clk 0:00:28]} 24. exf6 {[%clk 0:00:32]}  Ne6 {[%clk 0:00:28]} 25. Qh6+ {[%clk 0:00:32]}  Kg8 {[%clk 0:00:28]} 26. gxf5 {[%clk 0:00:33]}  gxf5 {[%clk 0:00:27]} 27. Bf3 {[%clk 0:00:27]}  Re8 {[%clk 0:00:27]} 28. Kh1 {[%clk 0:00:28]} 1-0


[Site "https://www.chess.com"]

[Event "Titled Tuesday Blitz March 21 Early 2023"]
[White "Fernandez Hernandez, Gerardo"]
[Black "Spitzl, Vinzent"]
[WhiteFideId "2207400"]
[BlackFideId "12901253"]
[WhiteElo "2208"]
[BlackElo "2225"]
[Result "0-1"]
[Round "03"]
[TimeControl "180+2"]
[Date "2023.03.21"]
[WhiteClock "0:00:01"]
[BlackClock "0:00:49"]

1. e4 {[%clk 0:03:00]}  c5 {[%clk 0:02:55]} 2. d3 {[%clk 0:03:01]}  Nc6 {[%clk 0:02:53]} 3. g3 {[%clk 0:03:01]}  g6 {[%clk 0:02:54]} 4. Bg2 {[%clk 0:03:01]}  Bg7 {[%clk 0:02:54]} 5. f4 {[%clk 0:03:02]}  d6 {[%clk 0:02:51]} 6. Nf3 {[%clk 0:03:02]}  Bg4 {[%clk 0:02:51]} 7. h3 {[%clk 0:03:02]}  Bxf3 {[%clk 0:02:51]} 8. Qxf3 {[%clk 0:03:03]}  Nf6 {[%clk 0:02:51]} 9. O-O {[%clk 0:03:02]}  O-O {[%clk 0:02:51]} 10. g4 {[%clk 0:02:54]}  e6 {[%clk 0:02:49]} 11. c3 {[%clk 0:02:39]}  Rc8 {[%clk 0:02:45]} 12. Be3 {[%clk 0:02:26]}  b5 {[%clk 0:02:42]} 13. Qf2 {[%clk 0:02:14]}  Nd7 {[%clk 0:02:33]} 14. Nd2 {[%clk 0:02:06]}  a5 {[%clk 0:02:30]} 15. Nf3 {[%clk 0:01:54]}  Qe7 {[%clk 0:02:29]} 16. g5 {[%clk 0:01:37]}  f5 {[%clk 0:02:20]} 17. exf5 {[%clk 0:01:28]}  gxf5 {[%clk 0:02:17]} 18. d4 {[%clk 0:01:16]}  cxd4 {[%clk 0:02:13]} 19. Nxd4 {[%clk 0:01:16]}  Nxd4 {[%clk 0:02:08]} 20. Bxd4 {[%clk 0:01:17]}  Nc5 {[%clk 0:02:07]} 21. Bxg7 {[%clk 0:01:08]}  Qxg7 {[%clk 0:02:04]} 22. Rad1 {[%clk 0:01:06]}  Rfd8 {[%clk 0:02:00]} 23. Rfe1 {[%clk 0:01:05]}  d5 {[%clk 0:01:49]} 24. Qd4 {[%clk 0:00:57]}  Qxd4+ {[%clk 0:01:45]} 25. cxd4 {[%clk 0:00:51]}  Ne4 {[%clk 0:01:45]} 26. Bxe4 {[%clk 0:00:51]}  dxe4 {[%clk 0:01:45]} 27. Rd2 {[%clk 0:00:46]}  Kf7 {[%clk 0:01:36]} 28. Kf2 {[%clk 0:00:46]}  Rc4 {[%clk 0:01:30]} 29. Ke3 {[%clk 0:00:45]}  a4 {[%clk 0:01:27]} 30. h4 {[%clk 0:00:40]}  b4 {[%clk 0:01:20]} 31. h5 {[%clk 0:00:28]}  a3 {[%clk 0:01:20]} 32. bxa3 {[%clk 0:00:25]}  bxa3 {[%clk 0:01:20]} 33. Rb1 {[%clk 0:00:23]}  Rc3+ {[%clk 0:01:20]} 34. Ke2 {[%clk 0:00:21]}  Rd7 {[%clk 0:01:18]} 35. Rb8 {[%clk 0:00:18]}  Rf3 {[%clk 0:01:05]} 36. Rh8 {[%clk 0:00:17]}  Kg7 {[%clk 0:01:06]} 37. Re8 {[%clk 0:00:17]}  Rxf4 {[%clk 0:01:04]} 38. Rxe6 {[%clk 0:00:17]}  Rg4 {[%clk 0:01:04]} 39. h6+ {[%clk 0:00:17]}  Kf7 {[%clk 0:01:03]} 40. Rf6+ {[%clk 0:00:18]}  Ke7 {[%clk 0:01:02]} 41. Rxf5 {[%clk 0:00:18]}  Ke6 {[%clk 0:01:01]} 42. Re5+ {[%clk 0:00:13]}  Kd6 {[%clk 0:01:00]} 43. Ke3 {[%clk 0:00:12]}  Rc7 {[%clk 0:00:57]} 44. Rxe4 {[%clk 0:00:10]}  Rxg5 {[%clk 0:00:57]} 45. Rf2 {[%clk 0:00:07]}  Rg3+ {[%clk 0:00:56]} 46. Kf4 {[%clk 0:00:07]}  Rh3 {[%clk 0:00:55]} 47. Kg5 {[%clk 0:00:03]}  Kd5 {[%clk 0:00:50]} 48. Ref4 {[%clk 0:00:01]}  Rc6 {[%clk 0:00:49]} 49. Rd2 {[%clk 0:00:01]}  Rg6+ {[%clk 0:00:48]} 50. Kf5 {[%clk 0:00:01]}  Rh5# {[%clk 0:00:49]} 0-1


[Site "https://www.chess.com"]

[Event "Titled Tuesday Blitz March 21 Early 2023"]
[White "Salimova, Nurgyul"]
[Black "Fernandez Siles, Luis"]
[WhiteFideId "2915138"]
[BlackFideId "2209420"]
[WhiteElo "2314"]
[BlackElo "2186"]
[Result "1-0"]
[Round "03"]
[TimeControl "180+2"]
[Date "2023.03.21"]
[WhiteClock "0:01:47"]
[BlackClock "0:00:08"]

1. d4 {[%clk 0:03:00]}  Nf6 {[%clk 0:02:59]} 2. Nf3 {[%clk 0:03:00]}  g6 {[%clk 0:02:58]} 3. g3 {[%clk 0:02:59]}  Bg7 {[%clk 0:02:58]} 4. Bg2 {[%clk 0:03:00]}  O-O {[%clk 0:02:58]} 5. c4 {[%clk 0:02:59]}  d6 {[%clk 0:02:59]} 6. O-O {[%clk 0:02:58]}  c6 {[%clk 0:02:59]} 7. Nc3 {[%clk 0:02:58]}  Qa5 {[%clk 0:03:00]} 8. e4 {[%clk 0:02:52]}  e5 {[%clk 0:03:00]} 9. dxe5 {[%clk 0:02:44]}  dxe5 {[%clk 0:02:59]} 10. Qc2 {[%clk 0:02:34]}  Bg4 {[%clk 0:02:44]} 11. Be3 {[%clk 0:02:32]}  Bxf3 {[%clk 0:02:41]} 12. Bxf3 {[%clk 0:02:32]}  Nbd7 {[%clk 0:02:39]} 13. a3 {[%clk 0:02:28]}  Rfd8 {[%clk 0:02:27]} 14. c5 {[%clk 0:02:26]}  Nf8 {[%clk 0:02:20]} 15. b4 {[%clk 0:02:26]}  Qc7 {[%clk 0:02:19]} 16. Be2 {[%clk 0:02:26]}  Ne6 {[%clk 0:02:19]} 17. Bc4 {[%clk 0:02:26]}  Nd4 {[%clk 0:02:17]} 18. Qa2 {[%clk 0:02:26]}  h5 {[%clk 0:01:41]} 19. Rad1 {[%clk 0:02:19]}  h4 {[%clk 0:01:40]} 20. Ne2 {[%clk 0:02:19]}  Nf3+ {[%clk 0:01:29]} 21. Kg2 {[%clk 0:02:15]}  h3+ {[%clk 0:01:19]} 22. Kxf3 {[%clk 0:02:10]}  Nxe4 {[%clk 0:00:14]} 23. Bxf7+ {[%clk 0:01:57]}  Kh7 {[%clk 0:00:12]} 24. Kxe4 {[%clk 0:01:55]}  Rd4+ {[%clk 0:00:08]} 25. Bxd4 {[%clk 0:01:51]}  exd4 {[%clk 0:00:08]} 26. Qe6 {[%clk 0:01:47]} 1-0


[Site "https://www.chess.com"]

[Event "Titled Tuesday Blitz March 21 Early 2023"]
[White "Ovezdurdyyeva, Jemal"]
[Black "Gallo Garcia, Kemel Antonio"]
[WhiteFideId "14001888"]
[BlackFideId "3523896"]
[WhiteElo "2043"]
[BlackElo "2359"]
[Result "0-1"]
[Round "03"]
[TimeControl "180+2"]
[Date "2023.03.21"]
[WhiteClock "0:01:19"]
[BlackClock "0:00:24"]

1. e4 {[%clk 0:03:00]}  c5 {[%clk 0:02:57]} 2. Nf3 {[%clk 0:02:59]}  d6 {[%clk 0:02:55]} 3. c3 {[%clk 0:02:58]}  Nf6 {[%clk 0:02:51]} 4. Bd3 {[%clk 0:02:57]}  g6 {[%clk 0:02:48]} 5. O-O {[%clk 0:02:57]}  Bg7 {[%clk 0:02:48]} 6. h3 {[%clk 0:02:58]}  O-O {[%clk 0:02:48]} 7. Bc2 {[%clk 0:02:58]}  e5 {[%clk 0:02:45]} 8. d4 {[%clk 0:02:55]}  Nc6 {[%clk 0:02:37]} 9. Bg5 {[%clk 0:02:52]}  h6 {[%clk 0:02:35]} 10. Be3 {[%clk 0:02:52]}  b6 {[%clk 0:02:26]} 11. Na3 {[%clk 0:02:52]}  Nh5 {[%clk 0:02:24]} 12. Qd2 {[%clk 0:02:47]}  Kh7 {[%clk 0:02:05]} 13. Rfd1 {[%clk 0:02:40]}  Qf6 {[%clk 0:01:57]} 14. Nc4 {[%clk 0:02:38]}  Bxh3 {[%clk 0:01:52]} 15. Nxd6 {[%clk 0:02:27]}  Bxg2 {[%clk 0:01:24]} 16. Kxg2 {[%clk 0:02:15]}  Qxd6 {[%clk 0:01:20]} 17. dxc5 {[%clk 0:02:15]}  Qe6 {[%clk 0:01:17]} 18. Nh2 {[%clk 0:02:11]}  Nf4+ {[%clk 0:00:55]} 19. Bxf4 {[%clk 0:02:08]}  exf4 {[%clk 0:00:56]} 20. Qxf4 {[%clk 0:02:03]}  bxc5 {[%clk 0:00:56]} 21. Qg4 {[%clk 0:01:59]}  Qe7 {[%clk 0:00:53]} 22. Rd5 {[%clk 0:01:54]}  Ne5 {[%clk 0:00:52]} 23. Qh3 {[%clk 0:01:53]}  Rad8 {[%clk 0:00:44]} 24. Rad1 {[%clk 0:01:52]}  Rxd5 {[%clk 0:00:41]} 25. Rxd5 {[%clk 0:01:53]}  Qg5+ {[%clk 0:00:42]} 26. Qg3 {[%clk 0:01:50]}  Qc1 {[%clk 0:00:40]} 27. Bb3 {[%clk 0:01:38]}  c4 {[%clk 0:00:35]} 28. Bd1 {[%clk 0:01:31]}  Nd3 {[%clk 0:00:31]} 29. Be2 {[%clk 0:01:21]}  Nf4+ {[%clk 0:00:25]} 30. Kf3 {[%clk 0:01:20]}  Nxd5 {[%clk 0:00:24]} 31. exd5 {[%clk 0:01:19]}  Qxb2 {[%clk 0:00:24]} 0-1


[Site "https://www.chess.com"]

[Event "Titled Tuesday Blitz March 21 Early 2023"]
[White "Martinez, Shawn"]
[Black "Do Nascimento,Christian Almeida"]
[WhiteFideId "2039770"]
[BlackFideId "2143801"]
[WhiteElo "2174"]
[BlackElo "2125"]
[Result "0-1"]
[Round "03"]
[TimeControl "180+2"]
[Date "2023.03.21"]
[WhiteClock "0:00:04"]
[BlackClock "0:00:10"]

1. e4 {[%clk 0:03:00]}  c5 {[%clk 0:02:53]} 2. Nc3 {[%clk 0:03:00]}  g6 {[%clk 0:02:52]} 3. Bc4 {[%clk 0:02:59]}  Bg7 {[%clk 0:02:51]} 4. Qf3 {[%clk 0:02:59]}  e6 {[%clk 0:02:49]} 5. Nb5 {[%clk 0:02:59]}  d6 {[%clk 0:02:48]} 6. Qg3 {[%clk 0:02:58]}  e5 {[%clk 0:02:47]} 7. Qb3 {[%clk 0:02:55]}  Nh6 {[%clk 0:02:41]} 8. Qd3 {[%clk 0:02:49]}  O-O {[%clk 0:02:34]} 9. Qxd6 {[%clk 0:02:40]}  Qg5 {[%clk 0:02:33]} 10. Kf1 {[%clk 0:02:37]}  Nc6 {[%clk 0:02:02]} 11. Qxc5 {[%clk 0:02:27]}  Be6 {[%clk 0:01:54]} 12. d3 {[%clk 0:02:09]}  Qh4 {[%clk 0:01:47]} 13. Nf3 {[%clk 0:02:04]}  Qd8 {[%clk 0:01:40]} 14. Bg5 {[%clk 0:02:01]}  Qd7 {[%clk 0:01:37]} 15. Qd6 {[%clk 0:01:38]}  Qxd6 {[%clk 0:01:23]} 16. Nxd6 {[%clk 0:01:37]}  Nd4 {[%clk 0:01:12]} 17. Nxd4 {[%clk 0:01:13]}  exd4 {[%clk 0:01:11]} 18. b3 {[%clk 0:01:08]}  Bxc4 {[%clk 0:00:51]} 19. bxc4 {[%clk 0:00:48]}  b6 {[%clk 0:00:46]} 20. Nb5 {[%clk 0:00:43]}  Rfc8 {[%clk 0:00:43]} 21. h3 {[%clk 0:00:26]}  Rc5 {[%clk 0:00:26]} 22. Be7 {[%clk 0:00:18]}  Rcc8 {[%clk 0:00:26]} 23. Bg5 {[%clk 0:00:18]}  f5 {[%clk 0:00:25]} 24. Re1 {[%clk 0:00:16]}  fxe4 {[%clk 0:00:24]} 25. Rxe4 {[%clk 0:00:17]}  Nf7 {[%clk 0:00:13]} 26. Bc1 {[%clk 0:00:15]}  Re8 {[%clk 0:00:13]} 27. f3 {[%clk 0:00:12]}  Rxe4 {[%clk 0:00:13]} 28. dxe4 {[%clk 0:00:11]}  a6 {[%clk 0:00:13]} 29. Na3 {[%clk 0:00:10]}  Rc8 {[%clk 0:00:13]} 30. Ke2 {[%clk 0:00:09]}  Bf8 {[%clk 0:00:14]} 31. Kd3 {[%clk 0:00:10]}  Bc5 {[%clk 0:00:12]} 32. f4 {[%clk 0:00:10]}  Nd6 {[%clk 0:00:12]} 33. Rf1 {[%clk 0:00:09]}  b5 {[%clk 0:00:12]} 34. cxb5 {[%clk 0:00:09]}  axb5 {[%clk 0:00:13]} 35. Bb2 {[%clk 0:00:08]}  Ra8 {[%clk 0:00:12]} 36. Nb1 {[%clk 0:00:06]}  Ra4 {[%clk 0:00:12]} 37. e5 {[%clk 0:00:05]}  Nc4 {[%clk 0:00:12]} 38. Bxd4 {[%clk 0:00:04]}  Bxd4 {[%clk 0:00:12]} 39. Kxd4 {[%clk 0:00:05]}  Nd2+ {[%clk 0:00:13]} 40. Kd5 {[%clk 0:00:02]}  Nxf1 {[%clk 0:00:13]} 41. Nc3 {[%clk 0:00:03]}  Ne3+ {[%clk 0:00:13]} 42. Kd6 {[%clk 0:00:03]}  Rxf4 {[%clk 0:00:14]} 43. e6 {[%clk 0:00:03]}  Nc4+ {[%clk 0:00:14]} 44. Kd7 {[%clk 0:00:03]}  Rd4+ {[%clk 0:00:13]} 45. Ke7 {[%clk 0:00:02]}  b4 {[%clk 0:00:13]} 46. Nb5 {[%clk 0:00:01]}  Rd2 {[%clk 0:00:13]} 47. Kf6 {[%clk 0:00:02]}  Rf2+ {[%clk 0:00:13]} 48. Ke7 {[%clk 0:00:02]}  Rxc2 {[%clk 0:00:13]} 49. Nc7 {[%clk 0:00:03]}  Ne3 {[%clk 0:00:11]} 50. Ne8 {[%clk 0:00:02]}  Nf5+ {[%clk 0:00:11]} 51. Kf6 {[%clk 0:00:02]}  Rc8 {[%clk 0:00:10]} 52. Nd6 {[%clk 0:00:02]}  Nxd6 {[%clk 0:00:10]} 53. e7 {[%clk 0:00:02]}  Ne8+ {[%clk 0:00:10]} 54. Ke6 {[%clk 0:00:03]}  Ra8 {[%clk 0:00:10]} 55. Kd7 {[%clk 0:00:04]}  Ng7 {[%clk 0:00:10]} 0-1


[Site "https://www.chess.com"]

[Event "Titled Tuesday Blitz March 21 Early 2023"]
[White "Raahul V S"]
[Black "Sovetbekova, Nurai"]
[WhiteFideId "25035525"]
[BlackFideId "13801910"]
[WhiteElo "2168"]
[BlackElo "1857"]
[Result "1-0"]
[Round "03"]
[TimeControl "180+2"]
[Date "2023.03.21"]
[WhiteClock "0:00:03"]
[BlackClock "0:00:04"]

1. b3 {[%clk 0:02:54]}  Nf6 {[%clk 0:02:56]} 2. Bb2 {[%clk 0:02:53]}  g6 {[%clk 0:02:55]} 3. c4 {[%clk 0:02:42]}  Bg7 {[%clk 0:02:54]} 4. Nf3 {[%clk 0:02:40]}  O-O {[%clk 0:02:53]} 5. e3 {[%clk 0:02:41]}  c5 {[%clk 0:02:53]} 6. Nc3 {[%clk 0:02:41]}  Nc6 {[%clk 0:02:50]} 7. Be2 {[%clk 0:02:41]}  d6 {[%clk 0:02:50]} 8. O-O {[%clk 0:02:40]}  Bf5 {[%clk 0:02:45]} 9. d3 {[%clk 0:02:35]}  a6 {[%clk 0:02:33]} 10. Qd2 {[%clk 0:02:31]}  Qc7 {[%clk 0:02:32]} 11. Rac1 {[%clk 0:02:28]}  Rfd8 {[%clk 0:02:20]} 12. Rfd1 {[%clk 0:02:18]}  Rac8 {[%clk 0:02:18]} 13. d4 {[%clk 0:01:52]}  d5 {[%clk 0:01:51]} 14. Nxd5 {[%clk 0:01:34]}  Nxd5 {[%clk 0:01:50]} 15. cxd5 {[%clk 0:01:32]}  Rxd5 {[%clk 0:01:48]} 16. Rxc5 {[%clk 0:01:30]}  Rxc5 {[%clk 0:01:42]} 17. dxc5 {[%clk 0:01:31]}  Rd8 {[%clk 0:01:35]} 18. Qc1 {[%clk 0:00:58]}  Rxd1+ {[%clk 0:01:20]} 19. Bxd1 {[%clk 0:00:59]}  Bxb2 {[%clk 0:01:20]} 20. Qxb2 {[%clk 0:00:57]}  Nb4 {[%clk 0:01:04]} 21. Nd4 {[%clk 0:00:52]}  Qxc5 {[%clk 0:00:58]} 22. Nxf5 {[%clk 0:00:46]}  Qxf5 {[%clk 0:00:57]} 23. Bf3 {[%clk 0:00:41]}  Qd7 {[%clk 0:00:39]} 24. h4 {[%clk 0:00:37]}  h5 {[%clk 0:00:29]} 25. a3 {[%clk 0:00:34]}  Nc6 {[%clk 0:00:28]} 26. Qc3 {[%clk 0:00:34]}  Nd8 {[%clk 0:00:23]} 27. Qb4 {[%clk 0:00:25]}  b5 {[%clk 0:00:18]} 28. Qc5 {[%clk 0:00:20]}  Ne6 {[%clk 0:00:14]} 29. Qb6 {[%clk 0:00:18]}  Qc8 {[%clk 0:00:10]} 30. Bd5 {[%clk 0:00:16]}  Qc1+ {[%clk 0:00:09]} 31. Kh2 {[%clk 0:00:16]}  Qc7+ {[%clk 0:00:09]} 32. Qxc7 {[%clk 0:00:16]}  Nxc7 {[%clk 0:00:10]} 33. Bc6 {[%clk 0:00:16]}  Kg7 {[%clk 0:00:06]} 34. Kg3 {[%clk 0:00:16]}  Kf6 {[%clk 0:00:07]} 35. Kf4 {[%clk 0:00:14]}  e5+ {[%clk 0:00:05]} 36. Ke4 {[%clk 0:00:14]}  Ke6 {[%clk 0:00:05]} 37. f3 {[%clk 0:00:11]}  Kd6 {[%clk 0:00:05]} 38. Bb7 {[%clk 0:00:11]}  f5+ {[%clk 0:00:03]} 39. Kd3 {[%clk 0:00:10]}  Kc5 {[%clk 0:00:03]} 40. Bc8 {[%clk 0:00:07]}  Kd6 {[%clk 0:00:02]} 41. Kc3 {[%clk 0:00:07]}  Kc6 {[%clk 0:00:01]} 42. e4 {[%clk 0:00:06]}  Kd6 {[%clk 0:00:01]} 43. Kb4 {[%clk 0:00:06]}  fxe4 {[%clk 0:00:01]} 44. fxe4 {[%clk 0:00:07]}  Kc6 {[%clk 0:00:02]} 45. Ka5 {[%clk 0:00:07]}  Ne8 {[%clk 0:00:02]} 46. Kxa6 {[%clk 0:00:05]}  Nd6 {[%clk 0:00:02]} 47. Be6 {[%clk 0:00:04]}  Nxe4 {[%clk 0:00:03]} 48. Bf7 {[%clk 0:00:05]}  Nc5+ {[%clk 0:00:03]} 49. Ka5 {[%clk 0:00:03]}  e4 {[%clk 0:00:03]} 50. Kb4 {[%clk 0:00:04]}  e3 {[%clk 0:00:03]} 51. Kc3 {[%clk 0:00:03]}  e2 {[%clk 0:00:03]} 52. Kd2 {[%clk 0:00:03]}  Ne4+ {[%clk 0:00:03]} 53. Kxe2 {[%clk 0:00:03]}  Nd6 {[%clk 0:00:03]} 54. Bxg6 {[%clk 0:00:03]}  Kd5 {[%clk 0:00:02]} 55. Bxh5 {[%clk 0:00:03]}  Kd4 {[%clk 0:00:03]} 56. Kf2 {[%clk 0:00:02]}  Kc3 {[%clk 0:00:03]} 57. Bd1 {[%clk 0:00:02]}  Kd2 {[%clk 0:00:03]} 58. Be2 {[%clk 0:00:02]}  Kc3 {[%clk 0:00:03]} 59. a4 {[%clk 0:00:03]}  bxa4 {[%clk 0:00:04]} 60. bxa4 {[%clk 0:00:02]}  Kb4 {[%clk 0:00:04]} 61. Bb5 {[%clk 0:00:02]}  Ne4+ {[%clk 0:00:05]} 62. Kf3 {[%clk 0:00:02]}  Nd2+ {[%clk 0:00:04]} 63. Kf4 {[%clk 0:00:02]}  Nb3 {[%clk 0:00:03]} 64. h5 {[%clk 0:00:03]}  Nd4 {[%clk 0:00:03]} 65. h6 {[%clk 0:00:03]}  Ne6+ {[%clk 0:00:04]} 66. Kf5 {[%clk 0:00:03]}  Nd4+ {[%clk 0:00:04]} 67. Kf6 {[%clk 0:00:03]} 1-0


[Site "https://www.chess.com"]

[Event "Titled Tuesday Blitz March 21 Early 2023"]
[White "Richter, Nils"]
[Black "Friedel, Tom"]
[WhiteFideId "12990809"]
[BlackFideId "2002108"]
[WhiteElo "2381"]
[BlackElo "2309"]
[Result "1-0"]
[Round "03"]
[TimeControl "180+2"]
[Date "2023.03.21"]
[WhiteClock "0:00:23"]
[BlackClock "0:00:09"]

1. e4 {[%clk 0:03:00]}  c6 {[%clk 0:02:59]} 2. Nf3 {[%clk 0:03:00]}  d5 {[%clk 0:02:59]} 3. d3 {[%clk 0:03:01]}  e6 {[%clk 0:02:58]} 4. Nbd2 {[%clk 0:02:59]}  Nd7 {[%clk 0:02:56]} 5. g3 {[%clk 0:02:59]}  Ne7 {[%clk 0:02:55]} 6. Bg2 {[%clk 0:02:59]}  g6 {[%clk 0:02:55]} 7. O-O {[%clk 0:03:00]}  Bg7 {[%clk 0:02:56]} 8. c3 {[%clk 0:03:00]}  O-O {[%clk 0:02:56]} 9. d4 {[%clk 0:03:01]}  dxe4 {[%clk 0:02:56]} 10. Nxe4 {[%clk 0:03:01]}  Nf6 {[%clk 0:02:50]} 11. Nxf6+ {[%clk 0:03:01]}  Bxf6 {[%clk 0:02:50]} 12. Bh6 {[%clk 0:03:02]}  Bg7 {[%clk 0:02:47]} 13. Bxg7 {[%clk 0:03:02]}  Kxg7 {[%clk 0:02:48]} 14. Re1 {[%clk 0:03:02]}  Qc7 {[%clk 0:02:43]} 15. Re5 {[%clk 0:02:55]}  Bd7 {[%clk 0:02:33]} 16. Qd2 {[%clk 0:02:54]}  Rad8 {[%clk 0:02:34]} 17. Rae1 {[%clk 0:02:53]}  Bc8 {[%clk 0:02:29]} 18. Qf4 {[%clk 0:02:49]}  Nd5 {[%clk 0:02:00]} 19. Qh4 {[%clk 0:02:48]}  Qe7 {[%clk 0:01:54]} 20. Qe4 {[%clk 0:02:17]}  f6 {[%clk 0:01:44]} 21. Rxd5 {[%clk 0:02:07]}  cxd5 {[%clk 0:01:43]} 22. Qe3 {[%clk 0:02:04]}  Qf7 {[%clk 0:01:41]} 23. h4 {[%clk 0:02:03]}  Rfe8 {[%clk 0:01:40]} 24. Nh2 {[%clk 0:01:56]}  e5 {[%clk 0:01:36]} 25. Qd2 {[%clk 0:01:47]}  e4 {[%clk 0:01:34]} 26. Nf1 {[%clk 0:01:44]}  f5 {[%clk 0:01:34]} 27. Qf4 {[%clk 0:01:39]}  Be6 {[%clk 0:01:25]} 28. Ne3 {[%clk 0:01:38]}  Qd7 {[%clk 0:01:22]} 29. Qe5+ {[%clk 0:01:35]}  Kg8 {[%clk 0:01:21]} 30. Bf1 {[%clk 0:01:31]}  Bf7 {[%clk 0:01:20]} 31. Qf4 {[%clk 0:01:31]}  Qd6 {[%clk 0:01:20]} 32. Qh6 {[%clk 0:01:30]}  a6 {[%clk 0:01:10]} 33. Ng2 {[%clk 0:01:17]}  b5 {[%clk 0:01:02]} 34. a3 {[%clk 0:01:16]}  Qf8 {[%clk 0:01:01]} 35. Qg5 {[%clk 0:01:15]}  Qe7 {[%clk 0:01:00]} 36. Qh6 {[%clk 0:01:15]}  Rf8 {[%clk 0:00:59]} 37. Nf4 {[%clk 0:01:07]}  Be8 {[%clk 0:00:59]} 38. h5 {[%clk 0:00:55]}  Rd6 {[%clk 0:00:58]} 39. hxg6 {[%clk 0:00:37]}  hxg6 {[%clk 0:00:59]} 40. Nh3 {[%clk 0:00:32]}  Qg7 {[%clk 0:00:52]} 41. Qf4 {[%clk 0:00:31]}  Rff6 {[%clk 0:00:46]} 42. Ng5 {[%clk 0:00:30]}  Bc6 {[%clk 0:00:45]} 43. Be2 {[%clk 0:00:30]}  Rd8 {[%clk 0:00:38]} 44. Kg2 {[%clk 0:00:31]}  Rd7 {[%clk 0:00:20]} 45. Rh1 {[%clk 0:00:31]}  Qf8 {[%clk 0:00:20]} 46. Qe5 {[%clk 0:00:29]}  Qg7 {[%clk 0:00:18]} 47. Rh7 {[%clk 0:00:27]}  Qf8 {[%clk 0:00:08]} 48. Rxd7 {[%clk 0:00:23]}  Bxd7 {[%clk 0:00:08]} 49. Qxd5+ {[%clk 0:00:24]}  Kg7 {[%clk 0:00:08]} 50. Qxd7+ {[%clk 0:00:23]}  Kh6 {[%clk 0:00:09]} 51. Qh7+ {[%clk 0:00:22]}  Kxg5 {[%clk 0:00:09]} 52. Qh4# {[%clk 0:00:23]} 1-0


[Site "https://www.chess.com"]

[Event "Titled Tuesday Blitz March 21 Early 2023"]
[White "Kraus, Tomas"]
[Black "Remolar Gallen, Jose"]
[WhiteFideId "331708"]
[BlackFideId "2215187"]
[WhiteElo "2389"]
[BlackElo "2223"]
[Result "0-1"]
[Round "03"]
[TimeControl "180+2"]
[Date "2023.03.21"]
[WhiteClock "0:00:02"]
[BlackClock "0:00:07"]

1. e4 {[%clk 0:03:00]}  c5 {[%clk 0:02:59]} 2. Nc3 {[%clk 0:03:00]}  d6 {[%clk 0:02:57]} 3. f4 {[%clk 0:03:01]}  Nc6 {[%clk 0:02:48]} 4. Nf3 {[%clk 0:03:01]}  e6 {[%clk 0:02:46]} 5. g3 {[%clk 0:03:00]}  Nge7 {[%clk 0:02:46]} 6. Bg2 {[%clk 0:03:00]}  g6 {[%clk 0:02:46]} 7. O-O {[%clk 0:02:59]}  Bg7 {[%clk 0:02:47]} 8. d3 {[%clk 0:03:00]}  Rb8 {[%clk 0:02:45]} 9. Be3 {[%clk 0:02:59]}  b5 {[%clk 0:02:44]} 10. d4 {[%clk 0:02:47]}  b4 {[%clk 0:02:40]} 11. Ne2 {[%clk 0:02:46]}  cxd4 {[%clk 0:02:34]} 12. Nexd4 {[%clk 0:02:44]}  O-O {[%clk 0:02:33]} 13. Qd2 {[%clk 0:02:33]}  Bb7 {[%clk 0:01:54]} 14. Rfd1 {[%clk 0:02:18]}  d5 {[%clk 0:01:34]} 15. e5 {[%clk 0:02:10]}  Nxd4 {[%clk 0:01:09]} 16. Nxd4 {[%clk 0:02:08]}  a5 {[%clk 0:01:05]} 17. a4 {[%clk 0:01:56]}  Ba6 {[%clk 0:01:01]} 18. g4 {[%clk 0:01:36]}  Qc7 {[%clk 0:01:00]} 19. Qf2 {[%clk 0:01:18]}  Nc6 {[%clk 0:00:55]} 20. Nb3 {[%clk 0:01:13]}  g5 {[%clk 0:00:25]} 21. Bc5 {[%clk 0:00:42]}  gxf4 {[%clk 0:00:22]} 22. Bxf8 {[%clk 0:00:37]}  Rxf8 {[%clk 0:00:16]} 23. Qxf4 {[%clk 0:00:20]}  Nxe5 {[%clk 0:00:17]} 24. g5 {[%clk 0:00:14]}  Qxc2 {[%clk 0:00:15]} 25. Nd4 {[%clk 0:00:08]}  Qxb2 {[%clk 0:00:12]} 26. Rab1 {[%clk 0:00:05]}  Qc3 {[%clk 0:00:11]} 27. Rdc1 {[%clk 0:00:02]}  Qxd4+ {[%clk 0:00:09]} 28. Qxd4 {[%clk 0:00:02]}  Nf3+ {[%clk 0:00:10]} 29. Kf2 {[%clk 0:00:02]}  Bxd4+ {[%clk 0:00:11]} 30. Kxf3 {[%clk 0:00:02]}  Bc4 {[%clk 0:00:08]} 31. Bf1 {[%clk 0:00:02]}  Rc8 {[%clk 0:00:07]} 32. Bxc4 {[%clk 0:00:02]}  dxc4 {[%clk 0:00:08]} 33. Ke4 {[%clk 0:00:03]}  e5 {[%clk 0:00:08]} 34. h4 {[%clk 0:00:02]}  Kg7 {[%clk 0:00:08]} 35. h5 {[%clk 0:00:02]}  f6 {[%clk 0:00:08]} 36. Kf5 {[%clk 0:00:02]}  fxg5 {[%clk 0:00:09]} 37. Kxg5 {[%clk 0:00:02]}  h6+ {[%clk 0:00:09]} 38. Kf5 {[%clk 0:00:02]}  Kf7 {[%clk 0:00:10]} 39. Ke4 {[%clk 0:00:02]}  Ke6 {[%clk 0:00:10]} 40. Rf1 {[%clk 0:00:03]}  c3 {[%clk 0:00:09]} 41. Rb3 {[%clk 0:00:02]}  c2 {[%clk 0:00:09]} 42. Rc1 {[%clk 0:00:02]}  Rc4 {[%clk 0:00:07]} 43. Kd3 {[%clk 0:00:02]}  Kd5 {[%clk 0:00:08]} 44. Rxc2 {[%clk 0:00:02]}  e4+ {[%clk 0:00:08]} 45. Kd2 {[%clk 0:00:02]}  e3+ {[%clk 0:00:06]} 46. Kd3 {[%clk 0:00:03]}  Rxc2 {[%clk 0:00:07]} 47. Kxc2 {[%clk 0:00:03]}  Kc4 {[%clk 0:00:07]} 48. Rb1 {[%clk 0:00:02]}  Bc3 {[%clk 0:00:07]} 0-1


[Site "https://www.chess.com"]